fUST/lending_fUST_20250605
["ID","MTS","AMOUNT","RATE_DAILY","PERIOD"]
[364532331,1749129053732,-500.0,0.00021446,2]
[364532333,1749129053741,-500.0,0.00021446,2]
[364532335,1749129053750,-500.0,0.00021446,2]
[364532337,1749129053759,-500.0,0.00021446,2]
[364532339,1749129053769,-500.0,0.00021446,2]
[364532341,1749129053779,-2446.25076529,0.00021446,2]
[364532343,1749129053788,-500.0,0.00021446,2]
[364532345,1749129053800,-500.0,0.00021446,2]
[364532348,1749129053810,-207.4,0.00021446,2]
[364532349,1749129053819,-3000.0,0.0002145,2]
[364532351,1749129053828,-3000.0,0.0002146,2]
[364532353,1749129053838,-3000.0,0.0002147,2]
[364532355,1749129053847,-3000.0,0.0002148,2]
[364532357,1749129053856,-3000.0,0.0002149,2]
[364532359,1749129053865,-268805.996,0.00021499,2]
[364532361,1749129053875,-3000.0,0.000215,2]
[364532363,1749129053884,-1269.03732708,0.00021501,2]
[364532365,1749129053894,-3000.0,0.0002151,2]
[364532367,1749129053903,-3000.0,0.0002152,2]
[364532369,1749129053913,-3000.0,0.0002153,2]
[364532371,1749129053922,-3000.0,0.0002154,2]
[364532373,1749129053931,-3000.0,0.0002155,2]
[364532375,1749129053940,-3000.0,0.0002156,2]
[364532377,1749129053949,-3000.0,0.0002157,2]
[364532379,1749129053959,-3000.0,0.0002158,2]
[364532381,1749129053968,-3000.0,0.0002159,2]
[364532383,1749129053978,-500.0,0.00021594,2]
[364532385,1749129053987,-3000.0,0.000216,2]
[364532387,1749129053996,-3000.0,0.0002161,2]
[364532389,1749129054006,-500.84808081,0.00021614,2]
[364532391,1749129054016,-505.00855098,0.00021614,2]
[364532393,1749129054027,-500.0,0.00021614,2]
[364532395,1749129054036,-500.0,0.00021614,2]
[364532397,1749129054046,-500.0,0.00021614,2]
[364532399,1749129054056,-200.8465109,0.00021614,2]
[364532401,1749129054065,-3000.0,0.0002162,2]
[364532403,1749129054075,-505.73318035,0.00021622,2]
[364532405,1749129054084,-3000.0,0.0002163,2]
[364532407,1749129054094,-16000.0,0.00021633,2]
[364532409,1749129054103,-500.0,0.00021634,2]
[364532411,1749129054113,-600.0,0.00021634,2]
[364532413,1749129054122,-3000.0,0.0002164,2]
[364532415,1749129054132,-483.99,0.00021643,2]
[364532417,1749129054141,-856.61,0.00021643,2]
[364532419,1749129054151,-858.83,0.00021643,2]
[364532421,1749129054160,-535.8,0.00021643,2]
[364532423,1749129054169,-587.49,0.00021643,2]
[364532425,1749129054179,-440.0,0.00021643,2]
[364532427,1749129054189,-883.15,0.00021643,2]
[364532429,1749129054198,-440.0,0.00021643,2]
[364532431,1749129054208,-151.0,0.00021643,2]
[364532433,1749129054217,-440.0,0.00021643,2]
[364532435,1749129054228,-440.0,0.00021643,2]
[364532436,1749129054239,-151.0,0.00021643,2]
[364532438,1749129054248,-440.0,0.00021643,2]
[364532440,1749129054258,-500.0,0.00021643,4]
[364532442,1749129054267,-158.26369834,0.00021643,2]
[364532444,1749129054277,-473.1,0.00021643,2]
[364532446,1749129054286,-672.93,0.00021643,2]
[364532448,1749129054296,-440.0,0.00021643,2]
[364532450,1749129054306,-461.38,0.00021643,2]
[364532452,1749129054316,-551.83,0.00021643,2]
[364532454,1749129054327,-672.47,0.00021643,2]
[364532456,1749129054337,-440.0,0.00021643,2]
[364532458,1749129054346,-1568.37,0.00021643,2]
[364532460,1749129054356,-1375.97,0.00021643,2]
[364532462,1749129054366,-1063.31,0.00021643,2]
[364532464,1749129054376,-4655.85,0.00021643,2]
[364532466,1749129054386,-440.0,0.00021643,2]
[364532468,1749129054396,-589.34960142,0.00021643,2]
[364532470,1749129054405,-440.0,0.00021643,2]
[364532472,1749129054415,-2801.57,0.00021643,2]
[364532474,1749129054424,-668.44,0.00021643,2]
[364532476,1749129054434,-440.0,0.00021643,2]
[364532478,1749129054443,-3430.82,0.00021643,2]
[364532481,1749129054453,-1383.59,0.00021643,2]
[364532483,1749129054464,-1004.79,0.00021643,2]
[364532484,1749129054473,-998.67,0.00021643,2]
[364532486,1749129054483,-842.0,0.00021643,2]
[364532488,1749129054493,-440.0,0.00021643,2]
[364532490,1749129054502,-151.0,0.00021643,2]
[364532492,1749129054512,-440.0,0.00021643,2]
[364532494,1749129054522,-729.47,0.00021643,2]
[364532497,1749129054533,-479.6247904,0.00021643,2]
[364532499,1749129054543,-151.0,0.00021643,2]
[364532501,1749129054553,-1100.89,0.00021643,2]
[364532503,1749129054563,-628.44,0.00021643,2]
[364532505,1749129054573,-440.0,0.00021643,2]
[364532507,1749129054583,-1767.63,0.00021643,2]
[364532509,1749129054596,-523.36,0.00021643,2]
[364532523,1749129054709,-722.24,0.00021643,2]
[364532525,1749129054742,-440.0,0.00021643,2]
[364532527,1749129054752,-525.45,0.00021643,2]
[364532529,1749129054763,-440.0,0.00021643,2]
[364532531,1749129054772,-1310.04,0.00021643,2]
[364532533,1749129054782,-440.0,0.00021643,2]
[364532535,1749129054792,-440.0,0.00021643,2]
[364532537,1749129054803,-591.03,0.00021643,2]
[364532539,1749129054813,-777.48,0.00021643,2]
[364532541,1749129054823,-6412.96,0.00021643,2]
[364532543,1749129054833,-440.0,0.00021643,2]
[364532545,1749129054843,-1989.41,0.00021643,2]
[364532547,1749129054853,-440.0,0.00021643,2]
[364532549,1749129054863,-2786.91,0.00021643,2]
[364532551,1749129054873,-3698.19,0.00021643,2]
[364532553,1749129054883,-1298.6,0.00021643,2]
[364532555,1749129054893,-440.0,0.00021643,2]
[364532556,1749129054903,-2628.56,0.00021643,2]
[364532557,1749129054913,-750.16,0.00021643,2]
[364532558,1749129054923,-441.11,0.00021643,2]
[364532559,1749129054933,-642.44,0.00021643,2]
[364532560,1749129054943,-1111.6,0.00021643,2]
[364532561,1749129054954,-845.64,0.00021643,2]
[364532563,1749129054964,-525.79,0.00021643,2]
[364532565,1749129054974,-4147.91,0.00021643,2]
[364532567,1749129054984,-657.97,0.00021643,2]
[364532569,1749129054994,-175.828,0.00021788,2]
[364532571,1749129055004,-1794.96,0.000218,2]
[364532573,1749129055014,-27505.03765535,0.000218,2]
[364532617,1749129055460,-440.0,0.00018356,2]
[364532619,1749129055471,-440.0,0.00018356,2]
[364532621,1749129055482,-440.0,0.0001863,2]
[364532623,1749129055492,-440.0,0.00018904,2]
[364532625,1749129055502,-440.0,0.00019178,2]
[364532627,1749129055512,-44.82143821,0.00019178,2]
[364532629,1749129055524,-395.17856179,0.00019178,2]
[364532631,1749129055534,-440.0,0.00019452,2]
[364532633,1749129055544,-440.0,0.00019452,2]
[364532636,1749129055554,-160.0,0.00019609,2]
[364532638,1749129055564,-212.94059491,0.00019609,2]
[364532640,1749129055574,-440.0,0.00019726,2]
[364532642,1749129055584,-440.0,0.00019726,2]
[364532644,1749129055594,-294.13210489,0.00019961,2]
[364532646,1749129055604,-440.0,0.0002,2]
[364532648,1749129055615,-440.0,0.0002,2]
[364532650,1749129055625,-130.06525123,0.00020273,2]
[364532677,1749129055889,-440.0,0.00018356,2]
[364532680,1749129055899,-3355.08281907,0.000199,2]
[364532682,1749129055909,-3355.08281881,0.00020072,2]
[364532684,1749129055919,-3355.08281881,0.00020245,2]
[364532686,1749129055929,-309.93474877,0.00020273,2]
[364532688,1749129055939,-440.0,0.00020273,2]
[364532690,1749129055949,-3355.08281881,0.00020417,3]
[364532692,1749129055960,-440.0,0.00020547,2]
[364532694,1749129055970,-440.0,0.00020547,2]
[364532696,1749129055981,-3355.08281881,0.0002059,3]
[364532698,1749129055990,-294.13210489,0.00020813,2]
[364532700,1749129056000,-440.0,0.00020821,2]
[364532702,1749129056011,-440.0,0.00020821,2]
[364532704,1749129056021,-440.0,0.00021095,2]
[364532706,1749129056032,-440.0,0.00021095,2]
[364532708,1749129056042,-440.0,0.00021369,2]
[364532710,1749129056052,-389.20680014,0.00021369,2]
[364532712,1749129056064,-440.0,0.00021643,2]
[364532714,1749129056074,-4266.3122519,0.000218,2]
[364532742,1749129565506,260.333638,0.00013699,2]
[364532794,1749130102798,154.22519531,6.8e-07,2]
[364532795,1749130102901,154.22519531,6.8e-07,2]
[364532796,1749130103008,154.22519531,6.8e-07,2]
[364532797,1749130103112,154.22519531,6.8e-07,2]
[364532798,1749130103222,154.22519531,6.8e-07,2]
[364532800,1749130119634,412.522617,0.00024292,120]
[364532819,1749130209234,9000.0,0.000161,2]
[364532834,1749130232202,-739.07,0.00016521,2]
[364532835,1749130232212,-230.6872457,0.00016661,2]
[364532836,1749130232221,-276.82469484,0.00017012,2]
[364532837,1749130232230,-250.855509,0.00017143,2]
[364532838,1749130232239,-7840.1751327,0.00017538,2]
[364532839,1749130232248,-118.66035588,0.00017733,2]
[364532900,1749130238173,-1057.03146327,0.00017733,2]
[364533058,1749130243230,-2437.05283738,0.00017733,2]
[364533060,1749130243240,-1478.14,0.00018023,2]
[364533062,1749130243249,-183.8325656,0.00018256,2]
[364533064,1749130243258,-16000.0,0.00018345,2]
[364533066,1749130243267,-8902.77842904,0.00018356,2]
[364533068,1749130243276,-440.0,0.00018356,2]
[364533070,1749130243285,-558.17855621,0.00018356,2]
[364533072,1749130243294,-440.0,0.00018356,2]
[364533074,1749130243303,-440.0,0.00018356,2]
[364533076,1749130243312,-440.0,0.00018356,2]
[364533078,1749130243321,-440.0,0.00018356,2]
[364533080,1749130243330,-440.0,0.00018356,2]
[364533081,1749130243339,-440.0,0.00018356,2]
[364533082,1749130243348,-430.0,0.00018356,2]
[364533084,1749130243358,-440.0,0.00018356,2]
[364533086,1749130243367,-440.0,0.00018356,2]
[364533088,1749130243377,-440.0,0.00018356,2]
[364533089,1749130243386,-440.0,0.00018356,2]
[364533093,1749130243395,-440.0,0.00018356,2]
[364533095,1749130243404,-440.0,0.00018356,2]
[364533098,1749130243414,-440.0,0.00018356,2]
[364533101,1749130243423,-440.0,0.00018356,2]
[364533103,1749130243433,-440.0,0.00018356,2]
[364533105,1749130243442,-440.0,0.00018356,2]
[364533107,1749130243452,-541.53,0.00018356,2]
[364533109,1749130243461,-440.0,0.00018356,2]
[364533111,1749130243471,-440.0,0.00018356,2]
[364533129,1749130243625,-218.06659502,0.00018356,2]
[364533132,1749130243657,-221.93340498,0.00018356,2]
[364533134,1749130243666,-440.0,0.00018356,2]
[364533136,1749130243677,-440.0,0.00018356,2]
[364533139,1749130243687,-440.0,0.00018356,2]
[364533141,1749130243696,-440.0,0.00018356,2]
[364533142,1749130243706,-440.0,0.00018356,2]
[364533145,1749130243716,-440.0,0.00018356,2]
[364533147,1749130243726,-440.0,0.00018356,2]
[364533149,1749130243735,-440.0,0.00018356,2]
[364533150,1749130243745,-440.0,0.00018356,2]
[364533152,1749130243754,-440.0,0.00018356,2]
[364533154,1749130243764,-440.0,0.00018356,2]
[364533156,1749130243773,-440.0,0.00018356,2]
[364533158,1749130243782,-400.0,0.00018356,2]
[364533160,1749130243791,-440.0,0.00018356,2]
[364533162,1749130243801,-440.0,0.00018356,2]
[364533164,1749130243811,-440.0,0.00018356,2]
[364533166,1749130243820,-440.0,0.00018356,2]
[364533168,1749130243829,-540.66971869,0.00018356,2]
[364533170,1749130243840,-440.0,0.00018356,2]
[364533172,1749130243849,-440.0,0.00018356,2]
[364533174,1749130243858,-440.0,0.00018356,2]
[364533176,1749130243868,-249.56751369,0.00018356,2]
[364533178,1749130243876,-440.0,0.00018356,2]
[364533180,1749130243885,-440.0,0.00018356,2]
[364533182,1749130243894,-440.0,0.00018356,2]
[364533184,1749130243903,-324.24699966,0.00018356,2]
[364533186,1749130243913,-370.0,0.00018356,2]
[364533188,1749130243922,-440.0,0.00018356,2]
[364533190,1749130243931,-440.0,0.00018356,2]
[364533192,1749130243941,-440.0,0.00018356,2]
[364533194,1749130243950,-440.0,0.00018356,2]
[364533196,1749130243960,-849.54,0.00018356,2]
[364533198,1749130243969,-531.66,0.00018356,2]
[364533200,1749130243978,-2364.59,0.00018356,2]
[364533202,1749130243987,-483.00828249,0.00018356,2]
[364533204,1749130243996,-691.79,0.00018356,2]
[364533206,1749130244007,-502.4,0.00018356,2]
[364533208,1749130244017,-410.0,0.00018356,2]
[364533210,1749130244026,-1400.78,0.00018356,2]
[364533212,1749130244035,-1715.41,0.00018356,2]
[364533214,1749130244044,-440.0,0.00018356,2]
[364533216,1749130244053,-440.0,0.00018356,2]
[364533218,1749130244062,-440.0,0.00018356,2]
[364533220,1749130244071,-440.0,0.00018356,2]
[364533222,1749130244080,-486.6,0.00018356,2]
[364533224,1749130244089,-410.0,0.00018356,2]
[364533226,1749130244098,-440.0,0.00018356,2]
[364533228,1749130244107,-889.94,0.00018356,2]
[364533230,1749130244116,-440.0,0.00018356,2]
[364533232,1749130244125,-883.81,0.00018356,2]
[364533234,1749130244134,-440.0,0.00018356,2]
[364533237,1749130244144,-550.45,0.00018356,2]
[364533238,1749130244154,-440.0,0.00018356,2]
[364533240,1749130244162,-440.0,0.00018356,2]
[364533242,1749130244172,-440.0,0.00018356,2]
[364533244,1749130244180,-440.0,0.00018356,2]
[364533246,1749130244190,-440.0,0.00018356,2]
[364533248,1749130244200,-440.0,0.00018356,2]
[364533250,1749130244211,-440.0,0.00018356,2]
[364533253,1749130244220,-440.0,0.00018356,2]
[364533255,1749130244230,-440.0,0.00018356,2]
[364533257,1749130244239,-440.0,0.00018356,2]
[364533259,1749130244248,-994.7,0.00018356,2]
[364533260,1749130244257,-135.36535543,0.00018356,2]
[364533476,1749130246269,-304.63464457,0.00018356,2]
[364533478,1749130246279,-178.14801693,0.00018356,2]
[364533481,1749130246291,-261.85198307,0.00018356,2]
[364533483,1749130246300,-40.24804274,0.00018356,2]
[364533485,1749130246311,-399.75195726,0.00018356,2]
[364533487,1749130246320,-440.0,0.00018356,2]
[364533489,1749130246330,-52.54804274,0.00018356,2]
[364533492,1749130246350,-387.45195726,0.00018356,2]
[364533494,1749130246359,-440.0,0.00018356,2]
[364533496,1749130246369,-440.0,0.00018356,2]
[364533498,1749130246379,-440.0,0.00018356,2]
[364533500,1749130246388,-440.0,0.00018356,2]
[364533502,1749130246398,-440.0,0.00018356,2]
[364533504,1749130246407,-440.0,0.00018356,2]
[364533506,1749130246416,-500.34656641,0.00018356,2]
[364533508,1749130246426,-655.02,0.00018356,2]
[364533510,1749130246435,-440.0,0.00018356,2]
[364533512,1749130246444,-2073.96,0.00018356,2]
[364533515,1749130246454,-440.0,0.00018356,2]
[364533518,1749130246465,-440.0,0.00018356,2]
[364533520,1749130246474,-649.3,0.00018356,2]
[364533522,1749130246484,-142.9758114,0.00018356,2]
[364533525,1749130246504,-297.0241886,0.00018356,2]
[364533527,1749130246513,-492.76,0.00018356,2]
[364533530,1749130246526,-770.12869465,0.00018356,2]
[364534394,1749130349773,193.0185478,0.00024293,120]
[364534396,1749130482052,32665.92449968,0.00021918,60]
[364534397,1749130504320,1000.0,0.00024291,120]
[364534398,1749130512191,1000.0,0.00024291,120]
[364534399,1749130519257,500.0,0.00024291,120]
[364534400,1749130533677,996.0,0.00024291,120]
[364534402,1749130732103,247.316956,0.00013699,2]
[364534406,1749131136257,221.56891348,0.000157,2]
[364534438,1749131432328,-500.0,0.000163,2]
[364534439,1749131432337,-250.8555093,0.00016931,2]
[364534440,1749131432347,-500.0,0.00017158,2]
[364534441,1749131432356,-1025.69439324,0.00017166,2]
[364534455,1749131432584,-8974.30560676,0.00017166,2]
[364534456,1749131432594,-751.07,0.00017346,2]
[364534457,1749131432603,-832.2736616,0.00017561,2]
[364534458,1749131432613,-1959.90354126,0.00017619,2]
[364534459,1749131432622,-237.24485628,0.00017805,2]
[364534460,1749131432632,-500.0,0.00018061,2]
[364534461,1749131432641,-16000.0,0.00018345,2]
[364534462,1749131432651,-979.9804,0.00018355,2]
[364534463,1749131432660,-440.0,0.00018356,2]
[364534464,1749131432669,-440.47708401,0.00018356,2]
[364534465,1749131432679,-440.0,0.00018356,2]
[364534466,1749131432688,-295.99655748,0.00018356,2]
[364534467,1749131432698,-440.0,0.00018356,2]
[364534468,1749131432711,-440.0,0.00018356,2]
[364534469,1749131432721,-261.78734512,0.00018356,2]
[364534470,1749131432731,-440.0,0.00018356,2]
[364534471,1749131432740,-440.0,0.00018356,2]
[364534472,1749131432749,-440.0,0.00018356,2]
[364534473,1749131432759,-375.60490511,0.00018356,2]
[364534474,1749131432768,-440.0,0.00018356,2]
[364534475,1749131432777,-440.0,0.00018356,2]
[364534476,1749131432787,-440.0,0.00018356,2]
[364534477,1749131432795,-440.0,0.00018356,2]
[364534478,1749131432805,-322.68253243,0.00018356,2]
[364534479,1749131432814,-440.0,0.00018356,2]
[364534480,1749131432823,-594.11,0.00018356,2]
[364534481,1749131432832,-440.0,0.00018356,2]
[364534482,1749131432841,-440.0,0.00018356,2]
[364534483,1749131432851,-440.0,0.00018356,2]
[364534484,1749131432860,-626.77,0.00018356,2]
[364534485,1749131432877,-440.0,0.00018356,2]
[364534486,1749131432886,-574.26,0.00018356,2]
[364534487,1749131432895,-440.0,0.00018356,2]
[364534488,1749131432904,-440.0,0.00018356,2]
[364534489,1749131432914,-440.0,0.00018356,2]
[364534490,1749131432923,-440.0,0.00018356,2]
[364534491,1749131432932,-541.22,0.00018356,2]
[364534492,1749131432942,-440.0,0.00018356,2]
[364534493,1749131432953,-440.0,0.00018356,2]
[364534494,1749131432963,-440.0,0.00018356,2]
[364534495,1749131432973,-430.0,0.00018356,2]
[364534496,1749131432983,-384.24276267,0.00018356,2]
[364534497,1749131432992,-440.0,0.00018356,2]
[364534498,1749131433002,-642.71,0.00018356,2]
[364534499,1749131433012,-440.0,0.00018356,2]
[364534500,1749131433021,-440.0,0.00018356,2]
[364534501,1749131433030,-440.0,0.00018356,2]
[364534502,1749131433039,-540.8878095,0.00018356,2]
[364534503,1749131433049,-440.0,0.00018356,2]
[364534504,1749131433059,-440.0,0.00018356,2]
[364534505,1749131433072,-440.0,0.00018356,2]
[364534506,1749131433082,-306.44097479,0.00018356,2]
[364534551,1749131438549,-133.55902521,0.00018356,2]
[364534553,1749131438558,-296.44097479,0.00018356,2]
[364534565,1749131438660,-143.55902521,0.00018356,2]
[364534567,1749131438669,-440.0,0.00018356,2]
[364534569,1749131438679,-440.0,0.00018356,2]
[364534571,1749131438689,-440.0,0.00018356,2]
[364534573,1749131438698,-440.0,0.00018356,2]
[364534575,1749131438709,-420.0,0.00018356,2]
[364534577,1749131438718,-440.0,0.00018356,2]
[364534579,1749131438727,-440.0,0.00018356,2]
[364534582,1749131438737,-440.0,0.00018356,2]
[364534585,1749131438747,-440.0,0.00018356,2]
[364534587,1749131438756,-440.0,0.00018356,2]
[364534589,1749131438765,-440.0,0.00018356,2]
[364534591,1749131438775,-440.0,0.00018356,2]
[364534593,1749131438784,-440.0,0.00018356,2]
[364534595,1749131438793,-183.17523759,0.00018356,2]
[364534597,1749131438802,-440.0,0.00018356,2]
[364534599,1749131438811,-410.0,0.00018356,2]
[364534601,1749131438820,-440.0,0.00018356,2]
[364534603,1749131438829,-440.0,0.00018356,2]
[364534605,1749131438838,-440.0,0.00018356,2]
[364534607,1749131438847,-440.0,0.00018356,2]
[364534609,1749131438857,-440.0,0.00018356,2]
[364534611,1749131438866,-440.0,0.00018356,2]
[364534613,1749131438875,-440.0,0.00018356,2]
[364534615,1749131438885,-440.0,0.00018356,2]
[364534617,1749131438893,-440.0,0.00018356,2]
[364534619,1749131438903,-440.0,0.00018356,2]
[364534621,1749131438912,-440.0,0.00018356,2]
[364534623,1749131438921,-440.0,0.00018356,2]
[364534625,1749131438930,-440.0,0.00018356,2]
[364534628,1749131438939,-440.0,0.00018356,2]
[364534630,1749131438949,-430.0,0.00018356,2]
[364534632,1749131438959,-440.0,0.00018356,2]
[364534634,1749131438968,-440.0,0.00018356,2]
[364534636,1749131438978,-440.0,0.00018356,2]
[364534638,1749131438987,-440.0,0.00018356,2]
[364534640,1749131438996,-734.84,0.00018356,2]
[364534642,1749131439006,-440.0,0.00018356,2]
[364534644,1749131439015,-522.48,0.00018356,2]
[364534646,1749131439024,-1015.31,0.00018356,2]
[364534648,1749131439033,-440.0,0.00018356,2]
[364534650,1749131439041,-440.0,0.00018356,2]
[364534652,1749131439050,-440.0,0.00018356,2]
[364534654,1749131439061,-440.0,0.00018356,2]
[364534656,1749131439073,-440.0,0.00018356,2]
[364534658,1749131439082,-704.04,0.00018356,2]
[364534660,1749131439091,-440.0,0.00018356,2]
[364534662,1749131439100,-440.0,0.00018356,2]
[364534664,1749131439111,-440.0,0.00018356,2]
[364534666,1749131439120,-440.0,0.00018356,2]
[364534668,1749131439129,-465.78,0.00018356,2]
[364534670,1749131439139,-170.59918432,0.00018356,2]
[364534672,1749131439148,-440.0,0.00018356,2]
[364534674,1749131439157,-440.0,0.00018356,2]
[364534676,1749131439166,-2735.39,0.00018356,2]
[364534678,1749131439176,-470.0,0.00018356,2]
[364534680,1749131439185,-440.0,0.00018356,2]
[364534682,1749131439193,-410.0,0.00018356,2]
[364534684,1749131439203,-789.69,0.00018356,2]
[364534686,1749131439214,-440.0,0.00018356,2]
[364534688,1749131439223,-440.0,0.00018356,2]
[364534690,1749131439232,-1969.78,0.00018356,2]
[364534692,1749131439241,-440.0,0.00018356,2]
[364534694,1749131439251,-440.0,0.00018356,2]
[364534696,1749131439260,-410.0,0.00018356,2]
[364534698,1749131439270,-596.24,0.00018356,2]
[364534700,1749131439279,-2098.57,0.00018356,2]
[364534702,1749131439288,-440.0,0.00018356,2]
[364534704,1749131439297,-440.0,0.00018356,2]
[364534706,1749131439307,-440.0,0.00018356,2]
[364534708,1749131439316,-440.0,0.00018356,2]
[364534709,1749131439325,-1039.98,0.00018356,2]
[364534712,1749131439335,-575.99,0.00018356,2]
[364534714,1749131439344,-440.0,0.00018356,2]
[364534716,1749131439353,-360.0,0.00018356,2]
[364534718,1749131439363,-440.0,0.00018356,2]
[364534720,1749131439372,-666.59,0.00018356,2]
[364534722,1749131439381,-430.0,0.00018356,2]
[364534724,1749131439391,-440.0,0.00018356,2]
[364534726,1749131439400,-440.0,0.00018356,2]
[364534728,1749131439409,-440.0,0.00018356,2]
[364534730,1749131439418,-440.0,0.00018356,2]
[364534731,1749131439428,-440.0,0.00018356,2]
[364534733,1749131439437,-440.0,0.00018356,2]
[364534736,1749131439447,-440.0,0.00018356,2]
[364534738,1749131439458,-430.0,0.00018356,2]
[364534739,1749131439468,-457.56,0.00018356,2]
[364534741,1749131439477,-488.25,0.00018356,2]
[364534743,1749131439487,-500.57069289,0.00018356,2]
[364534745,1749131439496,-458.75,0.00018356,2]
[364534747,1749131439505,-430.0,0.00018356,2]
[364534749,1749131439518,-440.0,0.00018356,2]
[364534751,1749131439527,-440.0,0.00018356,2]
[364534754,1749131439537,-440.0,0.00018356,2]
[364534756,1749131439547,-1030.96,0.00018356,2]
[364534758,1749131439557,-440.0,0.00018356,2]
[364534759,1749131439566,-440.0,0.00018356,2]
[364534762,1749131439576,-440.0,0.00018356,2]
[364534764,1749131439585,-420.0,0.00018356,2]
[364534766,1749131439596,-1130.5,0.00018356,2]
[364534768,1749131439608,-440.0,0.00018356,2]
[364534770,1749131439621,-457.39,0.00018356,2]
[364534772,1749131439630,-440.0,0.00018356,2]
[364534774,1749131439639,-440.0,0.00018356,2]
[364534776,1749131439648,-440.0,0.00018356,2]
[364534778,1749131439657,-440.0,0.00018356,2]
[364534780,1749131439667,-440.0,0.00018356,2]
[364534782,1749131439676,-440.0,0.00018356,2]
[364534784,1749131439685,-440.0,0.00018356,2]
[364534786,1749131439694,-271.25153084,0.00018356,2]
[364534788,1749131439706,-440.0,0.00018356,2]
[364534790,1749131439715,-440.0,0.00018356,2]
[364534792,1749131439725,-440.0,0.00018356,2]
[364534794,1749131439734,-440.0,0.00018356,2]
[364534796,1749131439744,-833.97,0.00018356,2]
[364534798,1749131439753,-440.0,0.00018356,2]
[364534800,1749131439762,-2425.4,0.00018356,2]
[364534802,1749131439771,-768.09,0.00018356,2]
[364534804,1749131439781,-440.0,0.00018356,2]
[364534806,1749131439790,-523.3,0.00018356,2]
[364534808,1749131439801,-440.0,0.00018356,2]
[364534810,1749131439811,-417.89174655,0.00018356,2]
[364534812,1749131439821,-3874.13,0.00018356,2]
[364534814,1749131439831,-1786.89,0.00018356,2]
[364534817,1749131439841,-1747.68,0.00018356,2]
[364534819,1749131439850,-585.63,0.00018356,2]
[364534821,1749131439859,-440.0,0.00018356,2]
[364534823,1749131439869,-2376.16,0.00018356,2]
[364534825,1749131439879,-449.0,0.00018356,2]
[364534827,1749131439897,-470.0,0.00018356,2]
[364534829,1749131439907,-531.71,0.00018356,2]
[364534831,1749131439916,-863.29,0.00018356,2]
[364534833,1749131439925,-440.0,0.00018356,2]
[364534835,1749131439934,-471.25,0.00018356,2]
[364534837,1749131439944,-2792.23008471,0.0001863,3]
[364534839,1749131439953,-25327.61840815,0.0001863,2]
[364534841,1749131439964,-400.0,0.0001863,2]
[364534843,1749131439973,-440.0,0.0001863,2]
[364534845,1749131439983,-440.0,0.0001863,2]
[364534847,1749131439992,-440.0,0.0001863,2]
[364534849,1749131440003,-400.0,0.0001863,2]
[364534851,1749131440012,-440.0,0.0001863,2]
[364534855,1749131440022,-410.0,0.0001863,2]
[364534857,1749131440031,-440.0,0.0001863,2]
[364534860,1749131440041,-440.0,0.0001863,2]
[364534862,1749131440050,-440.0,0.0001863,2]